bitfinex/quotes_ETHUSD_20220220
["timestamp","ask_amount","ask_price","bid_price","bid_amount"]
[1645361425828,0.00241377,2634.1,2633.0,0.95016]
[1645361426021,0.00241377,2634.1,2633.7,0.00271607]
[1645361426430,0.52352462,2634.2,2633.7,0.00271607]
[1645361426622,4.2078692,2634.5,2633.7,0.00271607]
[1645361426623,1.0,2634.4,2633.7,0.00271607]
[1645361426828,0.7078692,2634.2,2633.7,0.00271607]
[1645361427024,1.0862692,2634.1,2632.7,0.0029308]
[1645361427225,4.5862692,2634.1,2633.9,0.00271601]
[1645361427425,0.7078692,2634.1,2633.9,0.00271601]
[1645361427724,1.09407631,2634.0,2633.9,0.00271601]
[1645361427926,0.00243211,2633.9,2633.5,0.01086566]
[1645361428126,13.52898242,2633.9,2632.7,0.0029308]
[1645361428330,0.3784,2633.7,2632.7,0.0029308]
[1645361428524,3.5,2633.8,2633.4,0.01086579]
[1645361428726,0.00243211,2633.9,2633.4,0.01086579]
[1645361429163,3.50243211,2633.9,2633.4,0.01086579]
[1645361429364,3.50243211,2633.9,2632.7,0.0029308]
[1645361429565,0.943312,2633.0,2632.7,0.0029308]
[1645361430866,0.943312,2633.0,2632.7,0.00549364]
[1645361431864,0.943312,2633.0,2632.7,0.0029308]
[1645361432065,0.943312,2633.0,2632.7,0.00549364]
[1645361432708,0.00243211,2633.9,2632.7,0.00549364]
[1645361432910,0.00243211,2633.9,2632.7,0.0029308]
[1645361433110,22.0,2633.7,2632.2,0.09346748]
[1645361433309,22.0,2633.7,2632.7,0.00256284]
[1645361433310,0.01267803,2633.5,2632.7,0.00256284]
[1645361433709,0.39107803,2633.5,2632.7,0.00256284]
[1645361433908,3.8784,2633.4,2632.7,0.00256284]
[1645361434108,0.95083,2633.3,2632.7,0.00256284]
[1645361434309,0.95083,2633.3,2632.1,0.016]
[1645361434310,1.17751139,2632.4,2632.1,0.016]
[1645361435512,1.17751139,2632.4,2631.9,0.1063738]
[1645361438060,1.17751139,2632.4,2632.0,0.00271493]
[1645361439061,1.17751139,2632.4,2631.9,0.1063738]
[1645361439262,0.88807425,2632.0,2631.9,0.1063738]
[1645361442228,20.5,2631.9,2631.1,0.12024084]
[1645361442527,3.5,2631.8,2630.4,3.99282]
[1645361442820,3.5,2631.8,2631.4,1.301e-05]
[1645361442821,5.0,2631.6,2631.4,1.301e-05]
[1645361443018,5.0,2631.6,2630.1,0.073]
[1645361443019,16.5,2631.1,2630.1,0.057]
[1645361443217,1.07455669,2630.9,2630.1,0.057]
[1645361443418,0.00078699,2631.2,2630.1,3.557]
[1645361443621,0.00078699,2631.2,2630.3,0.95122]
[1645361444261,0.00078699,2631.2,2630.1,0.057]
[1645361444661,0.00078699,2631.2,2630.4,0.95122]
[1645361444867,0.00078699,2631.2,2630.4,4.45122]
[1645361445266,0.00078699,2631.2,2630.6,1.90203]
[1645361445666,0.00078699,2631.2,2630.7,0.19]
[1645361445867,0.00078699,2631.2,2630.7,1.14101]
[1645361446268,0.00078699,2631.2,2630.6,1.90203]
[1645361446665,0.00078699,2631.2,2630.1,0.247]
[1645361447168,0.00078699,2631.2,2630.4,0.95122]
[1645361447615,0.00271265,2631.1,2630.5,0.00268851]
[1645361447814,0.94033177,2630.9,2630.5,0.00268851]
[1645361448019,0.89033177,2630.9,2630.5,0.00268851]
[1645361448616,0.89033177,2630.9,2630.1,0.247]
[1645361448819,0.89033177,2630.9,2630.6,0.00268846]
[1645361449819,0.99173121,2630.4,2630.1,0.057]
[1645361450019,0.99173121,2630.4,2630.2,0.05108767]
[1645361451016,0.99173121,2630.4,2630.1,0.057]
[1645361451219,0.99173121,2630.4,2630.2,0.00268887]
[1645361451673,0.94173121,2630.4,2630.2,0.00268887]
[1645361452273,0.00078699,2631.2,2630.1,0.057]
[1645361452469,0.0027124,2631.1,2630.2,0.00268887]
[1645361453272,1.15268266,2630.7,2630.1,0.01459846]
[1645361453875,0.00078699,2631.2,2630.1,0.01459846]
[1645361454073,0.00078699,2631.2,2630.3,0.95127]
[1645361454873,1.01128554,2631.0,2630.3,0.95127]
[1645361455116,0.00190848,2631.0,2630.3,0.95127]
[1645361455816,0.00078699,2631.2,2630.3,0.95127]
[1645361456021,0.0027128,2631.0,2630.3,0.95127]
[1645361457019,0.00078699,2631.2,2630.3,0.95127]
[1645361457220,0.0027128,2631.0,2630.3,0.95127]
[1645361457421,0.0027128,2631.0,2630.6,0.95111]
[1645361458220,1.03317289,2631.1,2630.6,0.95111]
[1645361458419,0.00271291,2631.0,2630.6,0.95111]
[1645361459483,0.00078699,2631.2,2630.6,0.95111]
[1645361459679,0.00271291,2631.0,2630.6,0.95111]
[1645361460676,0.00078699,2631.2,2630.3,0.19]
[1645361460677,0.91156951,2630.9,2630.3,0.19]
[1645361460877,0.00271291,2631.0,2630.2,0.19]
[1645361461876,1.17561714,2631.1,2630.2,0.19]
[1645361462079,0.00271277,2631.0,2630.2,0.19]
[1645361462919,0.00271277,2631.0,2630.3,0.95114]
[1645361463116,0.00078699,2631.2,2630.3,0.95114]
[1645361463314,0.00078699,2631.2,2630.2,1.1411365]
[1645361463315,0.00271277,2631.0,2630.2,0.19]
[1645361463919,0.00271277,2631.0,2630.5,0.8821131]
[1645361464317,0.00078699,2631.2,2630.5,1.0721131]
[1645361464517,0.00271288,2631.0,2630.6,1.90191]
[1645361465518,0.00078699,2631.2,2630.6,1.90191]
[1645361465721,0.00078699,2631.2,2630.6,2.85295]
[1645361465722,0.00271291,2631.0,2630.6,2.85295]
[1645361465919,0.00271291,2631.0,2630.7,0.9509456]
[1645361466567,0.00078699,2631.2,2630.7,0.9509456]
[1645361466766,0.00078699,2631.2,2630.8,0.3]
[1645361466967,3.5,2632.3,2631.0,18.0]
[1645361467168,3.5,2632.3,2630.9,0.19]
[1645361467169,0.64542381,2632.2,2631.2,2.8519013]
[1645361467371,4.14542381,2632.1,2631.2,1.90124]
[1645361467569,0.64542381,2632.0,2631.2,0.95062]
[1645361467767,0.64542381,2631.9,2631.2,0.95062]
[1645361467966,4.30343148,2632.4,2631.2,0.95062]
[1645361467967,0.64542381,2631.8,2631.2,0.95062]
[1645361468167,1.00340696,2632.2,2631.2,0.95062]
[1645361468368,0.64539309,2632.1,2631.2,0.95062]
[1645361469768,0.64539309,2632.1,2631.2,0.90062]
[1645361469971,0.64539309,2632.1,2631.1,1.90162]
[1645361470416,0.00190855,2631.8,2631.1,1.90162]
[1645361471014,1.12063814,2631.8,2631.1,1.90162]
[1645361471215,0.64539309,2631.7,2631.1,1.90162]
[1645361471717,0.00271277,2631.6,2631.1,1.90162]
[1645361471920,0.00271277,2631.6,2630.6,2.19058852]
[1645361472315,0.64810586,2631.6,2630.6,2.19058852]
[1645361472517,0.64810586,2631.6,2630.6,0.95378852]
[1645361472714,1.92238107,2631.8,2630.6,0.9511]
[1645361472715,1.19336775,2630.9,2630.6,0.9511]
[1645361473116,0.00271287,2631.2,2630.6,0.95378852]
[1645361473317,0.00271287,2631.2,2630.6,0.17093036]
[1645361473970,0.64793911,2631.4,2630.6,0.16824184]
[1645361474166,0.00271283,2631.1,2630.6,0.17093036]
[1645361475066,0.64793911,2631.3,2630.5,1.90213]
[1645361475264,0.0027128,2631.1,2630.6,0.00268852]
[1645361476266,0.64793911,2631.2,2630.5,1.90213]
[1645361476466,0.65065191,2631.1,2630.6,0.00268852]
[1645361476669,0.64793911,2631.0,2630.6,0.00268852]
[1645361476865,0.64793911,2630.9,2630.6,0.95373852]
[1645361477167,0.64793911,2630.8,2630.6,0.95373852]
[1645361477368,0.0027128,2631.1,2630.6,0.95373852]
[1645361477614,0.66892025,2631.3,2630.6,0.95105]
[1645361477814,0.00271272,2631.1,2630.6,0.95373852]
[1645361478611,0.66894865,2631.3,2630.6,0.95105]
[1645361478911,0.0027128,2631.1,2630.6,0.95373852]
[1645361479912,0.66894865,2631.3,2630.6,0.95105]
[1645361480117,0.0027128,2631.1,2630.6,1.90474542]
[1645361481113,1.12889399,2631.2,2630.6,0.95105]
[1645361481364,0.67166145,2631.1,2630.6,0.95373852]
[1645361481562,0.66894865,2631.0,2630.6,0.95373852]
[1645361481766,0.66894865,2630.9,2630.6,0.95373852]
[1645361481962,0.66894865,2630.8,2630.6,0.95373852]
[1645361482163,0.66894865,2630.7,2630.6,0.95373852]
[1645361482363,0.66894865,2630.7,2630.5,1.90213]
[1645361482668,0.66894865,2630.6,2630.5,1.90213]
[1645361484865,0.66894865,2630.6,2630.5,2.84461853]
[1645361485512,0.66894865,2630.6,2630.5,14.44641454]
[1645361485713,0.00271258,2631.1,2630.5,14.44641454]
[1645361485914,0.70707148,2631.3,2630.5,13.50213]
[1645361486314,0.00271258,2631.1,2630.5,13.50213]
[1645361486916,0.00271258,2631.1,2630.6,3.43189301]
[1645361487214,0.70707148,2631.4,2630.6,15.98273301]
[1645361487417,0.00271276,2631.1,2630.6,15.98542153]
[1645361487614,0.00271276,2631.1,2630.7,3.43189301]
[1645361487818,0.00271276,2631.1,2630.7,11.6]
[1645361488018,0.00271276,2631.1,2630.7,11.79]
[1645361488213,0.70707148,2631.6,2630.7,11.79]
[1645361488614,0.00271283,2631.1,2630.7,11.6]
[1645361489469,0.70707148,2631.6,2630.7,11.6]
[1645361489674,0.70707148,2631.6,2631.1,0.95065]
[1645361489869,0.70707148,2631.6,2631.1,12.55065]
[1645361490270,0.70707148,2631.7,2631.1,12.55065]
[1645361491169,0.00271278,2631.5,2631.1,12.55065]
[1645361491567,0.00271278,2631.5,2630.8,0.19]
[1645361491967,0.70707148,2631.7,2630.8,0.19]
[1645361492170,0.00271286,2631.3,2630.8,0.19]
[1645361492812,0.00271286,2631.3,2630.7,13.04075]
[1645361493014,0.70707148,2631.7,2630.8,11.6]
[1645361493212,0.70707148,2631.8,2630.8,11.6]
[1645361493415,0.00271289,2631.2,2630.8,11.6]
[1645361493615,0.00271289,2631.2,2630.9,0.00285073]
[1645361494216,0.70707148,2631.8,2630.9,0.00285073]
[1645361494419,1.03913769,2631.7,2630.9,0.00285073]
[1645361494619,0.00271289,2631.2,2630.6,0.19268852]
[1645361494820,0.00271289,2631.2,2630.8,0.00283927]
[1645361495021,0.00271289,2631.2,2630.6,0.00268852]
[1645361495418,0.00271289,2631.2,2630.5,0.00283927]
[1645361495628,0.70707148,2631.4,2630.5,0.00283927]
[1645361495826,0.00271283,2631.1,2630.6,0.00268852]
[1645361496667,1.68626683,2631.3,2630.5,0.00283927]
[1645361496963,0.0027128,2631.1,2630.6,0.00268852]
[1645361497862,0.70707148,2631.2,2630.5,0.00283927]
[1645361498266,0.0027128,2631.1,2630.6,0.00268852]
[1645361499064,0.70707148,2631.2,2630.3,0.00283927]
[1645361499264,0.0027128,2631.1,2630.6,0.00268852]
[1645361500315,0.70707148,2631.3,2630.4,11.6]
[1645361500515,0.0027128,2631.1,2630.6,0.00268852]
[1645361501514,0.70707148,2631.2,2630.5,0.00283927]
[1645361501914,0.0027128,2631.1,2630.6,0.00268852]
[1645361502715,0.70707148,2631.3,2630.5,0.00283927]
[1645361502917,0.0027128,2631.1,2630.6,0.00268852]
[1645361503962,0.70707148,2631.3,2630.5,0.00283927]
[1645361504266,0.0027128,2631.1,2630.6,0.00268852]
[1645361505064,0.70707148,2631.4,2630.5,0.00283927]
[1645361505266,0.0027128,2631.1,2630.6,0.00268852]
[1645361505464,0.70707148,2631.0,2630.6,0.00268852]
[1645361505663,0.68808817,2630.9,2630.6,0.00268852]
[1645361505863,0.70978428,2631.1,2630.6,0.00268852]
[1645361505864,0.68808817,2630.8,2630.6,0.00268852]
[1645361506067,0.68808817,2630.7,2630.6,0.00268852]
[1645361506262,0.70978428,2631.1,2630.5,0.91424533]
[1645361506263,0.70707148,2631.1,2630.5,0.91424533]
[1645361506463,0.70707148,2631.0,2630.6,0.9170846]
[1645361506668,0.70707148,2631.0,2630.6,0.00268852]
[1645361507067,0.70978417,2631.1,2630.6,0.00268852]
[1645361507468,0.68808817,2631.0,2630.5,0.90230362]
[1645361507715,0.70707148,2631.0,2630.6,0.90230362]
[1645361507916,0.68808817,2630.9,2630.2,0.00283927]
[1645361508117,0.70897789,2631.1,2630.2,0.90513804]
[1645361508314,0.68808817,2630.8,2630.3,0.00283927]
[1645361508517,0.68808817,2630.7,2630.3,0.00283927]
[1645361508723,0.68808817,2630.6,2630.3,0.00283927]
[1645361508922,0.68808817,2630.5,2630.4,0.00268656]
[1645361509118,0.70707148,2630.8,2630.4,0.00268656]
[1645361509524,1.39515965,2630.8,2630.4,0.9078246]
[1645361509721,0.68808817,2630.7,2630.4,0.00268656]
[1645361509925,0.68808817,2630.6,2630.2,0.8812168]
[1645361510123,0.70707148,2630.9,2630.5,0.00268651]
[1645361510622,0.70707148,2630.9,2630.5,0.88390331]
[1645361510923,0.70707148,2630.9,2630.5,0.00268651]
[1645361511122,0.70707148,2630.9,2630.2,0.88117801]
[1645361511371,0.70707148,2630.9,2630.6,0.00268641]
[1645361511567,0.72137878,2630.8,2630.6,0.00268641]
[1645361511766,0.70707148,2631.0,2630.6,0.00268641]
[1645361512368,0.70707148,2631.0,2630.1,0.01743773]
[1645361512565,0.70707148,2631.0,2630.6,0.0026864]
[1645361513670,0.70707148,2631.0,2630.6,0.00238418]
[1645361514868,0.00215859,2630.3,2630.1,0.05320669]
[1645361515912,0.00215859,2630.3,2630.1,0.01743773]
[1645361516111,0.00215859,2630.3,2630.1,0.01982237]
[1645361517114,0.00215859,2630.3,2630.1,0.01743773]
[1645361517314,0.00215859,2630.3,2630.1,0.02011868]
[1645361519181,0.0027099,2631.1,2630.2,44.6]
[1645361519375,0.0027099,2631.1,2630.4,0.95088]
[1645361519571,0.70707148,2631.3,2630.4,0.95088]
[1645361519771,0.00271023,2631.1,2630.5,0.0026805]
[1645361520265,0.70978171,2631.1,2630.5,0.0026805]
[1645361520663,0.70978171,2631.1,2630.1,0.20743773]
[1645361520664,0.70707148,2631.1,2630.1,0.20743773]
[1645361520863,0.70707148,2631.1,2630.2,0.00283927]
[1645361521065,0.7097836,2631.1,2630.6,0.0026864]
[1645361521867,0.70707148,2631.1,2630.4,0.95096]
[1645361522166,0.70707148,2631.1,2630.6,0.0026864]
[1645361522167,0.70978364,2631.1,2630.6,0.0026864]
[1645361522813,0.70707148,2630.9,2630.6,0.0026864]
[1645361523215,0.70707148,2630.9,2630.2,0.00283927]
[1645361523415,0.70707148,2631.0,2630.6,0.0026864]
[1645361524417,0.70707148,2631.1,2630.4,0.95096]
[1645361524615,0.7097836,2631.1,2630.6,0.0026864]
[1645361524815,0.70707148,2631.0,2630.6,0.0026864]
[1645361525418,0.7097836,2631.1,2630.6,0.0026864]
[1645361525615,0.70707148,2631.1,2630.4,0.95096]
[1645361525817,0.70707148,2631.1,2630.6,0.0026864]
[1645361525818,0.70707148,2631.0,2630.6,0.0026864]
[1645361526018,0.00271212,2631.1,2630.6,0.0026864]
[1645361526662,0.55794195,2631.3,2630.4,0.95096]
[1645361527062,0.00271216,2631.1,2630.6,0.0026864]
[1645361527666,0.00271216,2631.1,2630.4,0.9036464]
[1645361527866,0.55794195,2631.3,2630.4,0.9036464]
[1645361527867,1.50252301,2631.3,2630.4,0.9036464]
[1645361528265,0.55794195,2631.3,2630.4,0.9036464]
[1645361528467,0.55794195,2631.3,2630.5,11.6]
[1645361529264,0.00190853,2631.0,2630.5,11.6]
[1645361529667,0.00190853,2631.0,2630.4,1.5036464]
[1645361529866,0.00190853,2631.0,2630.4,0.9036464]
[1645361530119,0.00190853,2631.0,2630.4,1.5036464]
[1645361530311,0.55794195,2631.3,2630.4,1.5036464]
[1645361530510,0.00190848,2630.9,2630.4,1.5036464]
[1645361530711,0.00190848,2630.9,2630.5,11.6]
[1645361531513,0.55794195,2631.3,2630.5,11.6]
[1645361531712,0.00271228,2630.9,2630.6,12.43018515]
[1645361531913,0.00271228,2630.9,2630.7,12.43018515]
[1645361532115,0.00271228,2630.9,2630.8,12.43018515]
[1645361532312,0.00271228,2630.9,2630.8,13.73018515]
[1645361532714,0.77326777,2631.2,2630.8,13.73018515]
[1645361532915,0.77326777,2631.2,2630.9,0.83018515]
[1645361533113,0.00271232,2631.0,2630.9,1.13018515]
[1645361533968,0.77326777,2631.2,2630.9,12.73018515]
[1645361534168,0.77326777,2631.2,2630.9,13.73018515]
[1645361534169,0.00271228,2631.1,2630.9,13.73018515]
[1645361534366,0.00271228,2631.1,2631.0,12.43018515]
[1645361534771,0.00271228,2631.1,2631.0,12.73018515]
[1645361535166,0.77326777,2631.3,2631.2,11.6]
[1645361535366,0.77326777,2631.3,2631.2,12.43018515]
[1645361535569,0.77326777,2631.3,2631.2,11.6]
[1645361535868,1.71784883,2632.0,2631.2,12.4296126]
[1645361536066,0.71818726,2631.8,2631.2,11.6]
[1645361536265,0.71818726,2631.8,2631.3,12.42960958]
[1645361536467,0.71818726,2631.9,2631.3,15.1728173]
[1645361536773,0.71818726,2631.9,2631.6,9.8771193]
[1645361536774,1.209e-05,2631.7,2631.6,9.8771193]
[1645361536969,0.71839526,2632.5,2631.7,42.8771193]
[1645361537171,0.71839526,2632.8,2632.1,9.8771193]
[1645361537371,0.71839526,2632.6,2632.1,10.0830193]
[1645361537628,0.71839526,2632.6,2632.1,10.6830193]
[1645361537819,0.71839526,2632.7,2632.1,10.6830193]
[1645361538121,9.526e-05,2632.7,2632.3,9.8771193]
[1645361538320,0.94458106,2633.1,2632.3,18.3728173]
[1645361538523,0.94458106,2633.1,2632.5,9.8771193]
[1645361538718,0.94458106,2633.5,2632.5,10.1771193]
[1645361538920,0.94458106,2633.5,2632.7,14.8728173]
[1645361539119,0.57547205,2633.6,2633.0,9.8771193]
[1645361539321,0.57547205,2633.6,2633.0,13.79955]
[1645361539518,0.57547205,2633.6,2633.0,12.84977]
[1645361539719,0.57547205,2633.6,2633.3,0.016]
[1645361539923,1.16373972,2633.4,2633.3,0.016]
[1645361540124,1.16373972,2633.4,2632.5,0.016]
[1645361540323,0.96116626,2632.9,2632.5,0.016]
[1645361540523,0.96116626,2632.9,2632.1,1.1801]
[1645361540724,0.86975741,2632.5,2632.2,0.016]
[1645361541227,0.86975741,2632.5,2631.2,0.1899]
[1645361541228,1.81433847,2632.5,2631.2,0.1899]
[1645361541470,0.94458106,2632.4,2631.2,11.7899]
[1645361541768,0.94729292,2632.5,2631.2,11.7899]
[1645361541969,0.00271186,2632.5,2631.2,15.2899]
[1645361542170,0.00271186,2632.5,2631.2,15.8899]
[1645361542368,0.94458106,2632.6,2631.2,15.8899]
[1645361542573,0.00271201,2632.0,2631.2,15.8899]
[1645361542768,0.00271201,2632.0,2631.2,12.3899]
[1645361543672,1.06207005,2632.3,2631.2,12.3899]
[1645361544370,1.06207005,2632.3,2631.2,12.2]
[1645361546015,0.94458106,2632.7,2631.2,0.6]
[1645361546016,0.94684475,2631.9,2631.2,0.6]
[1645361546215,0.94955372,2631.9,2631.1,0.016]
[1645361546416,0.94955372,2631.9,2631.0,12.37113243]
[1645361546417,0.94955372,2631.9,2631.0,12.48113243]
[1645361546614,0.94955372,2631.9,2631.1,0.3]
[1645361547115,0.94184659,2631.5,2630.9,0.32819997]
[1645361547317,0.94184659,2631.5,2630.9,0.13819997]
[1645361547517,0.94184659,2631.5,2630.5,2.3837]
[1645361547518,0.94184659,2631.5,2630.8,0.00268626]
[1645361547920,1.14809893,2631.1,2630.8,0.00268626]
[1645361548317,1.14809893,2631.1,2630.2,0.016]
[1645361548515,1.14809893,2631.1,2630.1,0.01459846]
[1645361548715,1.14809893,2631.1,2630.8,0.00268626]
[1645361549169,0.71461864,2631.5,2630.8,0.00268626]
[1645361549572,0.71461864,2631.4,2630.1,0.01459846]
[1645361549775,0.70170328,2631.4,2630.1,0.01459846]
[1645361549971,3.5,2631.6,2630.8,0.00268626]
[1645361550378,0.94311206,2631.3,2630.8,0.00268626]
[1645361550772,0.94311206,2631.3,2630.3,0.95095]
[1645361550970,0.94311206,2631.3,2630.8,0.00268626]
[1645361551971,1.15013343,2630.9,2630.3,0.95095]
[1645361552173,1.15013343,2630.9,2630.8,0.00268626]
[1645361552372,1.14507029,2630.9,2630.8,0.00268626]
[1645361553217,1.14507029,2630.9,2630.1,2.59941322]
[1645361553417,1.14507029,2630.9,2630.7,0.00268632]
[1645361554419,1.14507029,2630.9,2630.1,0.01459846]
[1645361554619,0.09651,2631.5,2630.7,0.00268637]
[1645361555524,0.09651,2631.5,2630.1,0.96556846]
[1645361555718,1.14854964,2631.4,2630.1,12.56556846]
[1645361555919,1.14854964,2631.4,2630.8,0.00268626]
[1645361556371,0.09651,2631.5,2630.8,0.00268626]
[1645361556372,0.90143702,2631.0,2630.8,0.00268626]
[1645361556571,0.09651,2631.5,2630.8,0.00022845]
[1645361556772,0.09651,2631.5,2630.1,1.00587197]
[1645361556773,0.09651,2631.5,2630.1,0.96556846]
[1645361556973,0.72671028,2631.4,2630.2,0.86932129]
[1645361557172,3.5,2631.3,2630.2,0.86932129]
[1645361557377,0.72671028,2631.2,2630.2,0.86932129]
[1645361557573,0.72671028,2631.1,2630.2,0.86932129]
[1645361557774,3.59651,2631.5,2630.2,0.86932129]
[1645361557775,0.91385993,2630.9,2630.2,0.86932129]
[1645361557973,0.72671028,2630.8,2630.2,0.86932129]
[1645361558474,0.72671028,2630.7,2630.2,0.86932129]
[1645361558673,0.00190496,2631.2,2630.2,0.86932129]
[1645361559274,1.14535454,2631.0,2630.2,0.86932129]
[1645361559475,0.72669819,2630.9,2630.6,0.00268033]
[1645361560318,0.81122283,2631.5,2630.4,11.6]
[1645361560521,0.72684105,2631.4,2630.5,13.42016129]
[1645361560719,0.00270893,2631.2,2630.6,0.00268028]
[1645361560924,0.72954998,2631.2,2630.6,0.87198191]
[1645361561120,0.72684105,2631.1,2630.6,0.87198191]
[1645361561321,0.00270893,2631.2,2630.6,0.87198191]
[1645361561519,0.72689366,2631.4,2630.6,0.86930163]
[1645361562119,0.002709,2631.2,2630.7,0.00268023]
[1645361562719,0.72689366,2631.4,2630.6,0.86930163]
[1645361563118,0.00270908,2631.2,2630.7,0.00268023]
[1645361563978,0.72689366,2631.4,2630.6,0.86930163]
[1645361564177,0.00270908,2631.2,2630.7,0.00268023]
[1645361564578,0.00270908,2631.2,2630.7,11.60268023]
[1645361564775,0.00270908,2631.2,2630.8,0.86930163]
[1645361564977,0.00270908,2631.2,2630.7,0.00268023]
[1645361565178,0.71482283,2631.8,2630.6,0.86944282]
[1645361565375,0.00270911,2631.2,2630.7,0.00268023]
[1645361565576,0.00270911,2631.2,2630.9,0.95071]
[1645361566477,0.72689366,2631.7,2630.9,0.95071]
[1645361566679,0.00248149,2631.2,2630.7,0.002482]
[1645361567719,0.72689366,2631.3,2630.6,12.46967592]
[1645361567917,0.00230724,2631.2,2630.7,0.00209948]
[1645361568825,0.72689366,2631.3,2630.3,0.19]
[1645361569021,0.00230724,2631.2,2630.7,0.00209948]
[1645361570020,0.72689366,2631.3,2630.5,0.86980752]
[1645361570318,0.00230724,2631.2,2630.7,0.00209948]
[1645361571120,0.72689366,2631.3,2630.5,0.86976603]
[1645361571374,0.72689366,2631.3,2630.7,0.00209948]
[1645361571375,0.00232802,2631.2,2630.7,0.00209948]
[1645361572365,0.72689366,2631.3,2630.5,0.86976603]
[1645361572567,0.00236052,2631.2,2630.7,0.00220785]
[1645361573566,0.72689366,2631.3,2630.5,0.86976603]
[1645361573767,0.72689366,2631.3,2630.7,0.00220785]
[1645361573971,0.00236052,2631.2,2630.7,0.00220785]
[1645361574769,0.72689366,2631.3,2630.5,11.6]
[1645361574977,0.00235761,2631.2,2630.7,0.00220785]
[1645361575618,0.72925127,2631.2,2630.7,0.00220785]
[1645361575820,0.72689366,2631.1,2630.7,0.00220785]
[1645361576020,0.72689366,2631.0,2630.5,12.46981804]
[1645361576220,0.72689366,2630.9,2630.7,0.00218346]
[1645361576422,0.0023503,2631.2,2630.7,0.00018562]
[1645361576824,0.0023503,2631.2,2630.7,11.60018562]
[1645361577024,0.0023503,2631.2,2630.8,11.6]
[1645361577221,0.72765607,2631.7,2630.9,11.6]
[1645361577423,1.1535,2631.9,2630.9,11.9]
[1645361577424,0.72765607,2631.6,2630.9,11.9]
[1645361577624,0.71482283,2631.9,2630.9,11.9]
[1645361577625,0.72765607,2631.5,2630.9,11.9]
[1645361577822,0.72765607,2631.4,2630.9,11.9]
[1645361578023,0.71482283,2631.9,2630.9,11.9]
[1645361578024,0.72765607,2631.3,2630.9,11.9]
[1645361578222,1.14074884,2631.8,2630.9,11.9]
[1645361578421,0.72756033,2631.7,2630.9,11.9]
[1645361578623,0.00169747,2631.2,2630.9,11.9]
[1645361578874,0.00169747,2631.2,2630.9,12.46333022]
[1645361579573,0.72756033,2631.7,2630.9,12.46333022]
[1645361579776,0.00249983,2631.2,2630.8,1.25057]
[1645361579975,0.00249983,2631.2,2630.7,2.09131]
[1645361580174,0.00249983,2631.2,2630.6,0.00250047]
[1645361580572,0.00249983,2631.2,2630.6,0.95338047]
[1645361580771,0.72756033,2631.3,2630.6,0.95088]
[1645361580971,0.72756033,2631.3,2630.6,0.95338037]
[1645361581171,0.00249973,2631.2,2630.6,0.95338037]
[1645361581376,0.96097672,2631.0,2630.6,0.95338037]
[1645361581574,0.72756033,2630.9,2630.6,0.95338037]
[1645361581775,0.72756033,2630.9,2630.6,0.00250037]
[1645361581972,0.72756033,2630.9,2630.3,11.9]
[1645361582174,0.72756033,2630.9,2630.6,0.00249525]
[1645361583227,0.72756033,2630.9,2630.3,0.86989626]
[1645361583528,0.72756033,2630.9,2630.6,0.00249525]
[1645361584333,0.72756033,2630.9,2630.3,0.86326081]
[1645361584526,0.72756033,2630.9,2630.4,0.86326081]
[1645361584727,0.72756033,2630.9,2630.6,0.00249525]
[1645361584929,0.72756033,2630.8,2630.6,0.00249525]
[1645361585128,0.72756033,2630.7,2630.6,0.00249525]
[1645361585529,0.71482283,2631.0,2630.3,0.86325064]
[1645361585730,0.71482283,2631.0,2630.4,0.86325064]
[1645361585930,0.71482283,2631.0,2630.5,0.00249574]
[1645361586575,0.72756033,2630.9,2630.5,0.00249574]
[1645361586779,0.72756033,2630.8,2630.4,0.86314337]
[1645361586981,0.72756033,2630.7,2630.6,0.00249576]
[1645361587377,0.71482283,2631.1,2630.6,0.00249576]
[1645361587579,0.00249512,2631.2,2630.6,1.81650913]
[1645361587876,0.00249512,2631.2,2630.7,0.86314337]
[1645361588080,0.72756033,2631.2,2630.7,0.86314337]
[1645361588276,0.72756033,2631.1,2630.7,0.86314337]
[1645361588477,0.72756033,2631.0,2630.7,0.86314337]
[1645361588676,0.72756033,2630.9,2630.7,12.46314337]
[1645361588876,0.00249521,2631.2,2630.6,0.95336585]
[1645361588877,0.00249521,2631.2,2630.8,12.46314337]
[1645361589181,1.4533877,2631.5,2630.9,0.86314337]
[1645361589378,0.0024951,2631.2,2631.1,0.95072]
[1645361589584,0.0024951,2631.2,2631.1,1.81528561]
[1645361589978,0.0024951,2631.2,2631.1,0.86456561]
[1645361590222,0.74105997,2631.2,2630.9,1.90134]
[1645361590425,0.94458106,2631.6,2631.0,0.86464086]
[1645361590426,0.73856487,2631.1,2631.0,0.86464086]
[1645361590623,0.00249529,2631.3,2631.0,0.86464086]
[1645361591626,0.73856487,2631.3,2631.0,0.86464086]
[1645361591824,0.73856487,2631.2,2631.0,0.86464086]
[1645361592024,0.73856487,2631.1,2631.0,0.86464086]
[1645361592231,0.73856487,2631.1,2630.6,0.00249596]
[1645361592526,0.71731812,2631.3,2630.6,0.00249596]
[1645361592527,0.73856487,2631.0,2630.6,0.86711135]
[1645361592725,0.73856487,2630.9,2630.7,0.86461539]
[1645361592925,0.73856487,2630.8,2630.4,2.20177]
[1645361593123,0.73856487,2630.7,2630.6,0.00249577]
[1645361593327,0.71482283,2631.0,2630.6,0.86727233]
[1645361593527,0.73856487,2630.9,2630.6,0.86727233]
[1645361593725,0.73856487,2630.8,2630.6,0.86727233]
[1645361593976,0.73856487,2630.7,2630.6,0.86477656]
[1645361594177,0.71482283,2631.1,2630.6,1.16727226]
[1645361594379,0.71482283,2631.1,2630.7,0.86477656]
[1645361594780,0.73856487,2631.0,2630.7,0.86477656]
[1645361594976,0.73856487,2630.9,2630.7,0.86477656]
[1645361595275,0.73856487,2630.8,2630.7,0.86477656]
[1645361595675,1.4533877,2631.1,2630.7,0.86477656]
[1645361595874,0.73856487,2631.0,2630.7,0.86477656]
[1645361596075,0.73856487,2630.9,2630.7,0.86477656]
[1645361596278,0.73856487,2630.8,2630.7,0.86477656]
[1645361596679,0.71731793,2631.2,2630.6,0.60249574]
[1645361597280,1.4533877,2631.1,2630.7,0.86482096]
[1645361597479,0.73856487,2631.0,2630.6,0.60249574]
[1645361597730,0.73856487,2630.9,2630.7,0.86485093]
[1645361597927,0.73856487,2630.8,2630.7,0.86485093]
[1645361598330,0.717318,2631.2,2630.7,0.86485093]
[1645361598527,0.00249517,2631.2,2630.7,0.86485093]
[1645361599026,0.0024952,2631.2,2630.7,0.86485093]
[1645361599934,0.71482283,2631.3,2630.7,0.86485093]
[1645361600327,1.4558829,2631.2,2630.7,0.86485093]
[1645361600529,0.73856487,2631.1,2630.7,0.86485093]
[1645361600728,0.73856487,2631.0,2630.7,0.86485093]
[1645361600929,0.73856487,2630.9,2630.7,0.86485093]